bitfinex/quotes_ETHUSD_20250329
["timestamp","ask_amount","ask_price","bid_price","bid_amount"]
[1743262390323,2.28664707,1845.9,1845.7,5.41794]
[1743262390629,2.28664707,1845.9,1845.8,5.4177]
[1743262390997,2.28664707,1845.9,1845.5,5.4183]
[1743262390998,5.4177,1845.8,1845.5,5.4183]
[1743262391190,2.67799697,1846.1,1845.4,5.41868]
[1743262391191,5.28664707,1845.6,1845.4,5.41868]
[1743262391506,5.28664707,1845.6,1845.3,5.41914]
[1743262391825,2.28664707,1845.4,1845.3,5.41914]
[1743262394715,2.28664707,1845.6,1845.4,5.41887]
[1743262394894,2.1541,1845.9,1845.6,5.41802]
[1743262395095,2.28664707,1845.7,1845.5,5.41856]
[1743262395301,2.28664707,1845.6,1845.5,5.41856]
[1743262396605,2.28664707,1845.6,1845.4,5.41867]
[1743262397528,2.28664707,1845.6,1845.5,5.41858]
[1743262399806,2.28664707,1845.6,1845.5,6.502305]
[1743262400006,2.28664707,1845.6,1845.5,5.41858]
[1743262401440,2.28664707,1845.8,1845.7,5.41771]
[1743262403342,4.76693164,1846.3,1845.9,5.41741]
[1743262403343,2.28664707,1846.0,1845.9,5.41741]
[1743262403837,2.28664707,1846.0,1845.8,10.83514]
[1743262404044,2.28664707,1846.0,1845.9,5.41741]
[1743262404942,5.28664707,1846.0,1845.9,5.41741]
[1743262411948,5.28664707,1846.0,1845.7,6.9253]
[1743262412141,2.28664707,1845.8,1845.7,5.4178]
[1743262415019,5.28664707,1845.8,1845.7,5.4178]
[1743262418065,3.0,1845.7,1845.6,5.41828]
[1743262418262,2.28664707,1845.8,1845.6,5.41828]
[1743262421473,2.28664707,1845.8,1845.5,10.83701]
[1743262421694,2.28664707,1845.6,1845.4,5.41877]
[1743262422080,2.28664707,1845.6,1845.4,10.83745]
[1743262422278,2.28664707,1845.6,1845.3,1.5776]
[1743262422279,4.6376,1845.5,1845.2,5.41921]
[1743262422587,2.28664707,1845.3,1845.2,5.41921]
[1743262423099,7.5084,1845.2,1844.7,10.68671]
[1743262423396,7.5084,1845.2,1844.6,1.5776]
[1743262423397,2.28664707,1844.8,1844.6,5.42116]
[1743262424159,2.28664707,1844.8,1844.6,6.505426]
[1743262424365,5.28664707,1844.8,1844.6,6.505426]
[1743262424776,5.28664707,1844.8,1844.7,5.42093]
[1743262425497,5.28664707,1844.8,1844.4,5.42175]
[1743262425707,5.28664707,1844.8,1844.5,5.42141]
[1743262425708,3.0,1844.8,1844.5,5.42141]
[1743262425859,2.28664707,1844.6,1844.5,5.42141]
[1743262426606,3.0,1844.5,1844.1,5.42255]
[1743262426804,1.6376,1844.6,1844.1,5.42255]
[1743262426963,1.6376,1844.6,1844.2,5.42228]
[1743262427469,2.28664707,1844.3,1844.2,5.42228]
[1743262428919,2.28664707,1844.3,1844.1,6.507103]
[1743262429213,2.28664707,1844.3,1844.1,5.42255]
[1743262429919,4.5341,1844.2,1843.9,5.42323]
[1743262430072,2.28664707,1844.1,1843.9,5.42323]
[1743262431214,2.28664707,1844.1,1843.7,2.698104]
[1743262431415,2.28664707,1844.1,1844.0,5.42299]
[1743262436941,2.28664707,1844.3,1844.2,5.4224]
[1743262437753,2.28664707,1844.3,1844.1,5.42269]
[1743262437909,2.28664707,1844.3,1844.0,5.42297]
[1743262438109,2.28664707,1844.1,1844.0,5.42297]
[1743262439155,2.28664707,1844.1,1843.9,5.42327]
[1743262439938,2.28664707,1844.1,1843.8,5.42357]
[1743262440148,2.28664707,1843.9,1843.8,5.42357]
[1743262441319,2.28664707,1843.9,1843.7,5.42385]
[1743262441524,2.28664707,1843.9,1843.7,10.84748]
[1743262441777,2.28664707,1843.9,1843.8,5.42358]
[1743262450401,2.28664707,1844.0,1843.9,5.42317]
[1743262451080,2.28664707,1844.2,1844.1,5.42269]
[1743262451998,2.28664707,1844.2,1844.0,10.84566]
[1743262452306,2.28664707,1844.2,1844.1,5.42269]
[1743262452690,2.28664707,1844.2,1844.0,5.42278]
[1743262452691,2.28664707,1844.2,1844.0,5.4229]
[1743262453316,2.28664707,1844.2,1844.0,5.42298]
[1743262453625,4.6665,1844.1,1843.8,5.42357]
[1743262453776,5.28664707,1844.0,1843.7,5.42386]
[1743262453975,2.28664707,1843.8,1843.6,5.42416]
[1743262454187,3.0,1843.7,1843.5,5.4244]
[1743262454420,2.28664707,1843.6,1843.5,5.4244]
[1743262456320,3.0,1843.5,1843.3,5.425]
[1743262456615,2.28664707,1843.4,1843.2,5.42509]
[1743262457426,2.28664707,1843.4,1843.1,10.85108]
[1743262457590,2.28664707,1843.2,1843.1,5.42545]
[1743262459194,2.28664707,1843.4,1843.3,5.4249]
[1743262459608,2.28664707,1843.4,1843.2,5.42528]
[1743262461110,2.28664707,1843.4,1843.2,10.85048]
[1743262461446,2.28664707,1843.4,1843.2,5.4252]
[1743262464722,2.28664707,1843.4,1843.1,6.98901]
[1743262465122,2.28664707,1843.4,1843.1,1.5634]
[1743262465749,2.28664707,1843.4,1843.0,10.85167]
[1743262466541,2.28664707,1843.4,1843.1,5.42561]
[1743262466922,2.28664707,1843.4,1843.2,5.42516]
[1743262467124,2.28664707,1843.4,1843.2,5.42519]
[1743262467439,2.28664707,1843.4,1843.2,10.85043]
[1743262467822,2.28664707,1843.4,1843.3,5.42505]
[1743262468424,2.28664707,1843.6,1843.5,5.42446]
[1743262469247,2.28664707,1843.6,1843.4,5.4247]
[1743262469425,2.28664707,1843.6,1843.3,5.42502]
[1743262469626,2.28664707,1843.4,1843.3,5.42502]
[1743262475169,2.28664707,1843.4,1843.1,10.85114]
[1743262475329,2.28664707,1843.4,1843.1,5.42551]
[1743262475536,2.28664707,1843.2,1843.1,5.42551]
[1743262483871,2.28664707,1843.4,1843.2,5.42528]
[1743262485372,5.28664707,1843.6,1843.4,5.42469]
[1743262485584,5.28664707,1843.6,1843.5,5.42446]
[1743262485940,5.28664707,1843.6,1843.4,5.42469]
[1743262487371,5.28664707,1843.6,1843.3,5.42503]
[1743262487682,2.28664707,1843.4,1843.3,5.42503]
[1743262491478,2.28664707,1843.4,1843.2,5.42532]
[1743262491694,3.0,1843.3,1842.9,5.42597]
[1743262491890,2.28664707,1843.2,1842.9,5.42597]
[1743262493551,3.0,1843.1,1843.0,5.42588]
[1743262493751,3.0,1843.1,1842.9,10.85207]
[1743262494183,3.0,1843.1,1842.9,5.42597]
[1743262496286,2.28664707,1843.0,1842.8,7.00486]
[1743262496588,2.28664707,1843.0,1842.8,5.42636]
[1743262497687,2.28664707,1843.0,1842.9,5.42623]
[1743262500476,2.28664707,1843.0,1842.8,5.42635]
[1743262501002,2.28664707,1843.0,1842.8,10.85269]
[1743262501974,2.28664707,1843.0,1842.8,5.42634]
[1743262504200,1.5039,1842.9,1842.6,1.5785]
[1743262504392,5.28664707,1842.8,1842.4,5.42757]
[1743262504690,2.28664707,1842.6,1842.4,10.85499]
[1743262504861,2.28664707,1842.6,1842.5,5.4274]
[1743262505262,2.28664707,1842.6,1842.4,5.42742]
[1743262506497,2.28664707,1842.6,1842.4,10.85501]
[1743262507186,2.28664707,1842.6,1842.4,10.85492]
[1743262507375,2.28664707,1842.6,1842.5,5.4274]
[1743262509481,5.28664707,1842.6,1842.5,5.4274]
[1743262513076,4.5039,1842.5,1842.3,5.42797]
[1743262513279,1.5039,1842.5,1842.3,5.42784]
[1743262513499,2.28664707,1842.4,1842.2,5.4282]
[1743262513811,2.28664707,1842.4,1842.1,10.85699]
[1743262514105,2.28664707,1842.4,1842.1,5.42846]
[1743262514309,2.28664707,1842.2,1842.0,10.85755]
[1743262514474,2.28664707,1842.2,1842.1,5.42858]
[1743262516476,2.28664707,1842.4,1842.3,5.42781]
[1743262517409,2.28664707,1842.4,1842.2,5.42818]
[1743262517786,4.5039,1842.3,1842.2,5.42818]
[1743262518106,4.5039,1842.3,1842.1,5.42856]
[1743262518406,2.28664707,1842.2,1842.0,5.42887]
[1743262518598,2.28664707,1842.2,1842.0,10.85774]
[1743262518797,2.28664707,1842.2,1842.0,5.42887]
[1743262519301,2.28664707,1842.2,1841.9,5.42916]
[1743262519302,2.28664707,1842.2,1841.8,5.42936]
[1743262519617,5.28664707,1842.0,1841.8,5.42936]
[1743262520112,5.28664707,1842.0,1841.7,5.42975]
[1743262520404,5.28664707,1842.0,1841.3,5.4309]
[1743262520405,1.5739,1841.7,1841.3,5.4309]
[1743262520712,2.28664707,1841.4,1841.3,5.4309]
[1743262521088,2.28664707,1841.4,1841.2,5.4311]
[1743262521410,3.86054707,1841.4,1841.2,5.43121]
[1743262521610,3.86054707,1841.4,1841.2,5.43106]
[1743262521803,5.28664707,1841.4,1841.3,5.43094]
[1743262522112,5.28664707,1841.4,1841.2,5.43106]
[1743262522695,5.28664707,1841.4,1841.3,5.43094]
[1743262523589,5.28664707,1841.4,1841.2,5.431]
[1743262523789,5.28664707,1841.4,1841.0,5.43182]
[1743262523790,2.28664707,1841.4,1841.0,5.43182]
[1743262523991,2.28664707,1841.2,1841.0,5.43182]
[1743262524499,2.28664707,1841.2,1841.0,10.86353]
[1743262524700,2.28664707,1841.2,1841.0,5.43169]
[1743262524903,2.28664707,1841.2,1841.1,5.43153]
[1743262525108,3.0,1841.1,1840.9,0.0395143]
[1743262525279,2.28664707,1841.0,1840.9,0.0395143]
[1743262525680,3.86054707,1841.0,1840.9,0.0395143]
[1743262525918,2.28664707,1841.2,1841.0,5.43172]
[1743262526216,1.5739,1841.1,1840.9,5.4715643]
[1743262526517,1.5739,1841.0,1840.9,5.4715643]
[1743262526687,4.41054707,1841.0,1840.9,0.0395143]
[1743262527082,3.86054707,1841.0,1840.9,0.0395143]
[1743262527287,3.86054707,1841.0,1840.9,5.4716343]
[1743262528117,3.86054707,1841.0,1840.9,0.0395143]
[1743262528424,1.99249077,1841.2,1841.0,5.43155]
[1743262528725,2.28664707,1841.1,1841.0,5.43183]
[1743262528922,2.28664707,1841.1,1840.9,10.9035743]
[1743262529219,2.28664707,1841.1,1840.9,10.9034943]
[1743262529422,2.28664707,1841.1,1840.9,5.4714943]
[1743262529782,2.28664707,1841.1,1841.0,5.43183]
[1743262529990,2.28664707,1841.1,1840.9,0.0395143]
[1743262530315,2.28664707,1841.1,1841.0,5.43183]
[1743262530705,2.28664707,1841.1,1840.9,5.4715043]
[1743262530706,5.28664707,1841.1,1840.9,5.4715043]
[1743262531089,5.28664707,1841.1,1840.9,0.0395143]
[1743262531720,0.52433785,1841.0,1840.9,0.0395143]
[1743262531929,0.52433785,1841.0,1840.9,5.4716343]
[1743262533399,0.52433785,1841.0,1840.9,0.0395143]
[1743262534833,8.67243785,1841.0,1840.9,0.0395143]
[1743262535021,46.86869185,1841.0,1840.9,0.0395143]
[1743262535219,47.52526423,1841.0,1840.9,0.0395143]
[1743262536335,47.79491681,1841.0,1840.9,0.0395143]
[1743262536638,41.70651443,1841.0,1840.9,0.0395143]
[1743262537035,34.07805485,1841.0,1840.9,0.0395143]
[1743262537219,11.67243785,1841.0,1840.9,0.0395143]
[1743262537621,11.12243785,1841.0,1840.9,0.0395143]
[1743262537955,9.58433785,1841.0,1840.9,0.0395143]
[1743262538134,9.58433785,1841.0,1840.9,5.4716343]
[1743262538335,0.52433785,1841.0,1840.9,5.4716343]
[1743262539251,0.52433785,1841.0,1840.9,7.0937343]
[1743262539498,5.69617243,1841.2,1841.1,5.43153]
[1743262539645,2.28664707,1841.3,1841.2,5.43103]
[1743262539847,2.28664707,1841.4,1841.3,5.43094]
[1743262540017,5.28664707,1841.4,1841.3,5.43094]
[1743262540213,2.69864473,1841.4,1841.3,5.43094]
[1743262540723,2.28664707,1841.4,1841.3,5.43094]
[1743262541038,2.28664707,1841.4,1841.3,7.05304]
[1743262541252,2.28664707,1841.4,1841.3,5.43094]
[1743262542438,2.28664707,1841.6,1841.5,5.43027]
[1743262542942,2.28664707,1841.6,1841.5,7.05237]
[1743262543111,2.69815445,1841.8,1841.7,5.42976]
[1743262543312,2.28664707,1841.8,1841.7,5.42976]
[1743262544126,8.34664707,1842.3,1841.8,1.6221]
[1743262544352,2.28664707,1842.1,1842.0,5.42888]
[1743262544645,2.28664707,1842.1,1841.9,5.42915]
[1743262544953,2.28664707,1842.1,1841.8,5.42922]
[1743262545148,2.28664707,1841.9,1841.8,5.42922]
[1743262545440,2.28664707,1841.9,1841.7,5.42976]
[1743262547148,2.28664707,1841.9,1841.6,10.8599]
[1743262547526,2.28664707,1841.9,1841.6,5.42985]
[1743262547852,1.5381,1841.7,1841.6,5.42985]
[1743262548147,1.95673318,1841.7,1841.5,5.43034]
[1743262548347,2.28664707,1841.6,1841.3,5.43092]
[1743262548645,2.28664707,1841.4,1841.3,5.43092]
[1743262548840,2.70490813,1841.4,1841.3,5.43092]
[1743262549417,0.41826106,1841.4,1841.3,5.43092]
[1743262550760,0.41826106,1841.4,1841.3,6.517115]
[1743262550916,0.41826106,1841.4,1841.3,8.177315]
[1743262551117,5.28664707,1841.8,1841.7,5.42976]
[1743262551717,5.28664707,1841.8,1841.6,5.42998]
[1743262551965,5.28664707,1841.8,1841.6,10.85983]
[1743262552127,2.28664707,1841.8,1841.6,5.42985]
[1743262552331,2.28664707,1841.8,1841.7,5.42956]
[1743262556356,3.83234707,1841.8,1841.5,5.4303]
[1743262556657,2.28664707,1841.6,1841.5,5.4303]
[1743262559156,2.28664707,1841.8,1841.7,5.42976]
[1743262561276,2.28664707,1842.0,1841.8,5.42936]
[1743262561472,2.28664707,1842.0,1841.9,5.42906]
[1743262561832,2.28664707,1842.0,1841.8,5.42936]
[1743262562650,0.38888085,1841.9,1841.8,5.42936]
[1743262566378,0.38888085,1841.9,1841.7,5.42974]
[1743262566379,1.89568085,1841.9,1841.7,5.42974]
[1743262566565,2.28664707,1841.8,1841.7,5.42974]
[1743262566966,2.67538229,1841.8,1841.7,5.42974]
[1743262568877,3.0,1841.7,1841.6,5.42987]
[1743262569089,3.38858958,1841.7,1841.6,5.42987]
[1743262569887,4.89538958,1841.7,1841.1,1.5346]
[1743262570052,4.89538958,1841.7,1841.1,5.43151]
[1743262570053,2.28664707,1841.2,1841.1,5.43151]
[1743262570253,2.67527119,1841.2,1841.1,5.43151]
[1743262570565,2.67527119,1841.2,1841.0,5.4318]
[1743262570767,1.5068,1841.1,1840.9,5.4716143]
[1743262570967,2.28664707,1841.0,1840.9,5.4716143]
[1743262571166,2.67490703,1841.0,1840.9,5.4716143]
[1743262571362,5.67490703,1841.0,1840.9,0.0395143]
[1743262572287,5.67490703,1841.0,1840.9,5.4716343]
[1743262572783,5.67490703,1841.0,1840.9,0.0395143]
[1743262573003,6.22490703,1841.0,1840.9,0.0395143]
[1743262573285,27.49660903,1841.0,1840.9,0.0395143]
[1743262573484,7.73170703,1841.0,1840.9,0.0395143]
[1743262573982,13.57557603,1841.0,1840.9,0.0395143]
[1743262574171,53.47439342,1841.0,1840.9,0.0395143]
[1743262574504,48.04256342,1841.0,1840.9,0.0395143]
[1743262574857,46.05847603,1841.0,1840.9,0.0395143]
[1743262575187,45.21147603,1841.0,1840.9,0.0395143]
[1743262575566,50.64330603,1841.0,1840.9,0.0395143]
[1743262576088,45.21147603,1841.0,1840.9,0.0395143]
[1743262576262,8.14374603,1841.0,1840.9,0.0395143]
[1743262576681,48.04256342,1841.0,1840.9,0.0395143]
[1743262576881,53.47439342,1841.0,1840.9,0.0395143]
[1743262577084,52.45293603,1841.0,1840.9,0.0395143]
[1743262577287,58.51293603,1841.0,1840.9,0.0395143]
[1743262577778,47.26347603,1841.0,1840.9,0.0395143]
[1743262578389,6.979504,1840.5,1840.3,0.109419]
[1743262578590,5.28664707,1840.4,1840.3,0.109419]
[1743262578766,5.67040429,1840.4,1840.3,0.109419]
[1743262580092,5.67040429,1840.4,1840.3,5.543309]
[1743262580284,5.67040429,1840.4,1840.3,0.109419]
[1743262580482,8.43599129,1840.4,1840.3,0.109419]
[1743262581062,18.43431074,1840.4,1840.3,0.109419]
[1743262581385,16.14766367,1840.4,1840.3,0.109419]
[1743262581587,3.0,1840.2,1840.1,0.016]
[1743262581794,59.365,1840.2,1840.1,0.016]
[1743262581997,75.10392563,1840.2,1840.1,0.016]
[1743262582396,1.5816,1840.0,1839.6,0.07599]
[1743262582593,0.55,1839.4,1839.2,5.43689]
[1743262582796,0.55,1839.4,1839.3,5.43685]
[1743262582797,8.34664707,1839.4,1839.3,5.43685]
[1743262582997,11.34664707,1839.4,1839.1,5.43738]
[1743262583196,0.55,1839.1,1838.9,5.43777]
[1743262583398,5.28664707,1839.0,1838.8,5.4382]
[1743262583596,2.28664707,1839.0,1838.8,5.4382]
[1743262583970,2.28664707,1839.0,1838.9,5.43803]
[1743262584166,2.28664707,1839.0,1838.9,6.99933]
[1743262584370,2.28664707,1839.0,1838.9,5.43803]
[1743262584800,2.28664707,1839.0,1838.8,5.43832]
[1743262585004,5.43832,1838.8,1838.6,5.43877]
[1743262585167,2.28664707,1838.7,1838.6,5.43877]
[1743262585504,3.0,1839.0,1838.9,5.43803]
[1743262585674,3.0,1839.0,1838.9,6.99933]
[1743262586799,6.06,1839.7,1839.0,5.43773]
[1743262586998,1.5816,1840.0,1839.5,5.43598]
[1743262586999,2.28664707,1839.6,1839.5,5.43598]
[1743262587399,1.5816,1839.5,1839.2,5.43691]
[1743262587605,2.28664707,1839.3,1839.2,10.87379]
[1743262588073,2.28664707,1839.5,1839.4,5.43655]
[1743262588270,8.416,1839.7,1839.4,5.43655]
[1743262588271,5.28664707,1839.7,1839.4,5.43655]
[1743262588471,2.28664707,1839.7,1839.6,5.43596]
[1743262588897,2.58897082,1839.8,1839.7,5.43544]
[1743262589070,5.58897082,1839.8,1839.7,5.43544]
[1743262589276,2.58897082,1839.8,1839.7,5.43544]
[1743262589574,5.58897082,1839.8,1839.7,5.43544]
[1743262589786,2.58897082,1839.8,1839.7,5.43544]
[1743262589987,3.0,1839.6,1839.5,5.43625]
[1743262590227,5.69701,1839.6,1839.5,5.43625]
[1743262590499,5.398176,1839.6,1839.5,5.43625]
[1743262590711,3.0,1839.6,1839.5,5.43625]
[1743262590883,4.5816,1839.5,1839.1,5.43732]
[1743262591086,2.58897082,1839.3,1839.1,5.43732]
[1743262591290,5.1316,1839.2,1838.6,5.43875]
[1743262591616,14.08598082,1839.3,1838.4,0.109419]
[1743262591617,0.55,1838.5,1838.4,0.109419]
[1743262591789,48.70391582,1838.5,1838.4,0.109419]
[1743262591991,23.385453,1838.5,1838.4,0.109419]
[1743262592189,12.273222,1838.5,1838.4,0.109419]
[1743262592507,3.0,1838.7,1838.4,0.109419]
[1743262592680,3.0,1838.7,1838.6,5.43865]
[1743262592883,3.0,1838.7,1838.4,0.109419]
[1743262592884,2.263878,1838.6,1838.4,0.109419]
[1743262593076,0.55,1838.6,1838.5,5.43921]
[1743262593405,5.1316,1838.5,1838.4,0.109419]
[1743262593608,7.72057082,1838.5,1838.4,0.109419]
[1743262593804,52.53354782,1838.5,1838.4,0.109419]
[1743262593975,21.40278582,1838.5,1838.4,0.109419]
[1743262594303,16.63417182,1838.5,1838.4,0.109419]
[1743262594510,5.58897082,1838.5,1838.4,5.548929]
[1743262594705,6.06,1838.6,1838.5,5.43921]
[1743262595007,31.773,1838.8,1838.7,5.43862]
[1743262595376,28.773,1838.8,1838.7,5.43862]
[1743262595704,12.82417082,1839.0,1838.9,5.43803]
[1743262595705,2.58897082,1839.0,1838.9,5.43803]
[1743262595916,6.06,1839.1,1838.9,5.43803]
[1743262596097,6.06,1839.1,1838.8,5.43832]
[1743262596292,7.7082,1839.2,1839.0,5.43773]
[1743262596494,6.06,1839.2,1839.1,5.43744]
[1743262596699,8.64897082,1839.2,1839.0,10.87531]
[1743262596899,8.64897082,1839.2,1839.0,5.43756]
[1743262597488,8.64897082,1839.2,1838.4,1.716619]
[1743262597489,5.43756,1839.0,1838.4,1.716619]
[1743262597690,8.64897082,1839.2,1839.0,5.43773]
[1743262598111,11.64897082,1839.2,1839.1,5.43744]
[1743262598520,9.06,1839.2,1839.1,5.43744]
[1743262598894,11.64897082,1839.2,1838.9,5.43788]
[1743262599094,11.64897082,1839.2,1839.0,5.43744]
[1743262599294,9.06,1839.2,1839.1,5.43744]
[1743262599722,6.06,1839.2,1839.1,5.43744]
[1743262600622,6.06,1839.2,1839.0,5.43744]
[1743262600926,8.64897082,1839.2,1839.1,5.43744]
[1743262601123,8.64897082,1839.2,1838.9,5.43797]
[1743262601518,8.64897082,1839.2,1838.9,5.43798]
[1743262601715,8.64897082,1839.2,1838.9,5.4379]
[1743262601914,8.64897082,1839.2,1838.9,10.87576]
[1743262602113,8.64897082,1839.2,1838.9,5.43786]
[1743262602315,0.55,1839.1,1838.8,5.43831]
[1743262602519,3.55,1839.1,1838.9,5.43799]
[1743262602716,3.0,1839.1,1838.9,10.87581]
[1743262602915,3.0,1839.1,1839.0,5.43773]
[1743262603097,3.0,1839.1,1838.9,5.43782]
[1743262603297,3.0,1839.1,1839.0,5.43773]
[1743262603702,6.06,1839.2,1839.1,5.43744]
[1743262603703,9.06,1839.2,1839.1,5.43744]
[1743262606025,6.06,1839.2,1839.1,5.43744]
[1743262607813,6.38081192,1839.2,1839.1,5.43744]
[1743262608506,6.38081192,1839.2,1838.7,5.587]
[1743262608507,3.0,1839.1,1838.9,5.43792]
[1743262608714,0.32064964,1839.0,1838.9,5.43792]
[1743262609403,0.87064964,1839.0,1838.8,5.43831]
[1743262609932,3.45962046,1839.0,1838.8,5.43831]
[1743262610305,3.45962046,1839.0,1838.8,5.43812]
[1743262610714,0.87064964,1839.0,1838.9,5.43803]
[1743262611206,8.701203,1838.8,1838.5,5.43921]
[1743262611424,6.06,1838.8,1838.5,5.43921]
[1743262611613,0.31986113,1838.7,1838.5,5.43921]
[1743262611929,0.31986113,1838.7,1838.5,10.87823]
[1743262612131,0.31986113,1838.7,1838.6,5.43892]
[1743262612536,3.31986113,1838.7,1838.6,5.43892]
[1743262612907,3.73345715,1838.7,1838.6,5.43892]
[1743262613519,0.31986113,1838.7,1838.6,5.43892]
[1743262615212,0.31986113,1838.7,1838.6,7.00162]
[1743262616540,3.0,1839.1,1839.0,5.43773]
[1743262616914,3.41341287,1839.1,1839.0,5.43773]
[1743262617841,0.41341287,1839.1,1839.0,5.43773]
[1743262618045,3.0,1839.2,1839.0,5.43773]
[1743262618046,3.0,1839.2,1839.1,5.43744]
[1743262619444,6.06,1839.3,1839.2,5.43714]
[1743262619643,3.0,1839.5,1839.4,5.43654]
[1743262619843,2.62542179,1839.6,1839.3,5.43674]
[1743262620023,6.417781,1839.5,1839.3,10.87338]
[1743262620214,6.417781,1839.5,1839.4,5.43655]
[1743262620408,3.0,1839.5,1839.4,5.43655]
[1743262621140,2.69655178,1839.9,1839.2,1.5627]
[1743262621447,4.19893104,1839.9,1839.6,5.43589]
[1743262621745,3.0,1839.9,1839.7,5.43553]
[1743262621914,2.041926,1839.8,1839.7,5.43553]
[1743262622116,3.0,1839.8,1839.7,10.87099]
[1743262622325,28.786,1840.0,1839.8,5.43537]
[1743262622537,28.786,1840.0,1839.9,5.43507]
[1743262622724,34.15929322,1840.0,1839.8,5.43537]
[1743262622929,29.05779122,1840.0,1839.8,5.43537]
[1743262623128,3.0,1839.9,1839.8,5.43517]
[1743262623340,3.27164527,1839.9,1839.8,5.43517]
[1743262624243,0.27164527,1839.9,1839.8,5.43517]
[1743262625842,0.27164527,1839.9,1839.8,6.683873]
[1743262626237,1.07265944,1840.1,1840.0,5.43478]
[1743262626819,1.07265944,1840.1,1839.9,5.435]
[1743262627237,1.07265944,1840.1,1839.9,10.86985]
[1743262627643,1.07265944,1840.1,1840.0,5.43478]
[1743262628248,1.07265944,1840.1,1839.9,5.43485]
[1743262628449,3.66163026,1840.1,1839.9,5.43485]
[1743262628827,1.07265944,1840.1,1839.9,5.43485]
[1743262629144,1.07265944,1840.1,1839.7,1.6163]
[1743262629145,5.100121,1839.9,1839.7,5.43561]
[1743262629348,1.5644,1840.0,1839.7,5.43561]
[1743262629864,1.5644,1840.0,1839.7,10.87112]
[1743262630023,1.5644,1840.0,1839.8,5.43536]
[1743262630219,1.5644,1840.0,1839.9,5.43507]
[1743262630858,1.5644,1840.0,1839.8,5.4352]
[1743262631147,1.5644,1840.0,1839.8,5.43517]
[1743262631354,9.72163026,1840.1,1839.9,5.43507]
[1743262631756,3.142618,1840.0,1839.9,5.43507]
[1743262632253,10.13265944,1840.1,1840.0,5.43478]
[1743262633042,10.13265944,1840.1,1839.9,5.43507]
[1743262633251,10.13265944,1840.1,1839.8,5.43521]
[1743262633456,10.13265944,1840.1,1839.9,5.43494]
[1743262633825,6.06,1840.5,1840.0,1.6163]
[1743262634030,3.0,1840.5,1840.3,5.43386]
[1743262634250,3.0,1840.5,1840.4,5.4336]
[1743262635748,10.21337082,1840.6,1840.4,5.4336]
[1743262635749,6.06,1840.6,1840.4,5.4336]
[1743262635936,6.06,1840.6,1840.5,5.4333]
[1743262637766,6.31773289,1840.6,1840.5,5.4333]
[1743262638761,0.25773289,1840.6,1840.5,5.4333]
[1743262639036,3.0,1840.8,1840.7,5.43271]
[1743262639346,3.0,1840.8,1840.6,5.43299]
[1743262639543,5.98852632,1840.8,1840.5,5.43329]
[1743262639839,4.43577,1840.7,1840.5,5.43329]
[1743262640044,2.358539,1840.6,1840.5,5.43329]
[1743262640245,4.452609,1840.7,1840.5,5.43329]
[1743262640445,3.645935,1840.7,1840.5,5.43329]
[1743262640630,4.832838,1840.7,1840.5,5.43329]
[1743262641451,4.283617,1840.7,1840.5,5.43329]
[1743262641653,5.228128,1840.7,1840.5,5.43312]
[1743262642249,0.55,1840.7,1840.5,5.43311]
[1743262642640,0.55,1840.7,1840.5,10.86629]
[1743262642949,1.66428866,1840.7,1840.6,5.43301]
[1743262643356,5.98852632,1840.8,1840.6,5.43279]
[1743262643572,3.3995555,1840.8,1840.7,5.43271]
[1743262644647,1.08890449,1840.9,1840.8,5.43242]
[1743262647964,1.08890449,1840.9,1840.8,6.518933]
[1743262648142,1.08890449,1840.9,1840.8,8.085033]
[1743262648872,3.38144222,1840.9,1840.8,5.43242]
[1743262649956,1.08890449,1840.9,1840.8,5.43242]
[1743262650171,1.08890449,1840.9,1840.8,6.99852]
[1743262650754,6.46189807,1841.2,1840.8,6.99852]
[1743262650755,6.06,1841.2,1841.0,5.43183]
[1743262650962,6.06,1841.2,1841.1,5.43153]
[1743262651168,9.06,1841.2,1841.1,5.43153]
[1743262652548,9.3005385,1841.2,1841.1,5.43153]
[1743262652856,9.3005385,1841.2,1841.1,6.99763]
[1743262653054,9.3005385,1841.2,1841.0,5.43183]
[1743262653368,8.99074373,1841.1,1841.0,5.43183]
[1743262653557,9.23113647,1841.1,1841.0,5.43183]
[1743262653963,9.01162247,1841.1,1841.0,5.43183]
[1743262654272,6.08293047,1841.1,1841.0,5.43183]
[1743262654658,5.53293047,1841.1,1841.0,5.43183]
[1743262655180,5.53293047,1841.1,1841.0,6.518224]
[1743262656071,5.53293047,1841.1,1841.0,8.180824]
[1743262656450,5.53293047,1841.1,1841.0,7.09443]
[1743262656845,5.53293047,1841.1,1841.0,5.43183]
[1743262657053,6.08293047,1841.1,1841.0,5.43183]
[1743262657352,8.58158047,1841.1,1841.0,5.43183]
[1743262658252,6.08293047,1841.1,1841.0,5.43183]
[1743262659479,5.53293047,1841.1,1841.0,5.43183]
[1743262662661,3.24039274,1841.1,1841.0,5.43183]
[1743262662984,0.24039274,1841.1,1841.0,5.43183]
[1743262663184,9.06,1841.2,1841.1,5.43153]
[1743262663358,9.3018082,1841.2,1841.1,5.43153]
[1743262664191,9.3018082,1841.2,1841.1,7.05983]
[1743262664872,9.3018082,1841.2,1841.1,5.43153]
[1743262668300,3.7918082,1841.2,1841.1,5.43153]
[1743262668461,5.4319082,1841.2,1841.0,5.43174]
[1743262668667,2.29253773,1841.1,1841.0,5.43174]
[1743262669165,2.53497865,1841.1,1841.0,5.43174]
[1743262670474,2.53497865,1841.1,1840.9,5.43197]
[1743262670475,5.53497865,1841.1,1840.9,5.43197]
[1743262671015,21.60691481,1841.0,1840.7,5.43268]
[1743262671234,0.55,1840.8,1840.6,5.43281]
[1743262671436,5.29253773,1840.7,1840.6,5.43281]
[1743262671638,4.656,1840.6,1840.3,5.4337]
[1743262671788,5.29253773,1840.4,1840.1,5.43436]
[1743262671991,5.29253773,1840.2,1840.1,5.43436]
[1743262672329,0.24008082,1840.2,1840.1,6.521273]
[1743262672693,5.29253773,1840.4,1840.3,5.43389]
[1743262676937,7.90374441,1840.4,1840.2,5.43391]